bitfinex/quotes_ETHUSD_20260225
["timestamp","ask_amount","ask_price","bid_price","bid_amount"]
[1772011295819,0.45847001,1916.4,1916.0,1.30577143]
[1772011295983,0.45847001,1916.4,1916.1,0.58451907]
[1772011297925,0.002,1916.4,1916.2,0.58451907]
[1772011298224,0.002,1916.7,1916.3,0.58451907]
[1772011299221,1.75948184,1916.7,1916.3,0.58451907]
[1772011299523,0.45514373,1916.7,1916.3,0.58451907]
[1772011300020,0.45514373,1916.7,1916.4,0.58451907]
[1772011300612,0.002,1916.7,1916.4,0.58451907]
[1772011300816,0.002,1916.5,1916.4,0.58451907]
[1772011301025,1.30364499,1917.7,1916.6,0.58451907]
[1772011301664,1.30364499,1917.7,1916.8,0.58451907]
[1772011302517,1.30364499,1917.7,1916.9,0.58451907]
[1772011303100,0.44979477,1917.6,1916.9,0.58451907]
[1772011303719,1.30364499,1917.7,1916.9,0.58451907]
[1772011303921,1.75262089,1917.7,1916.9,0.58451907]
[1772011304225,0.4489759,1917.6,1916.9,0.58451907]
[1772011304605,1.30378096,1917.5,1917.0,0.58451907]
[1772011305100,1.75273014,1917.6,1917.0,0.58451907]
[1772011305300,1.75180046,1917.8,1917.0,0.58451907]
[1772011305504,0.44817076,1917.7,1917.0,0.58451907]
[1772011305712,1.75093936,1917.9,1917.0,0.58451907]
[1772011305897,1.75093936,1917.9,1917.2,0.58451907]
[1772011306715,1.75093936,1917.9,1917.4,0.58451907]
[1772011307316,1.30356528,1917.9,1917.4,0.58451907]
[1772011308905,1.30356528,1917.9,1917.5,0.58451907]
[1772011309112,1.7500726,1918.0,1917.5,0.58451907]
[1772011310005,0.4442745,1918.4,1917.5,0.58451907]
[1772011310929,1.74675878,1918.3,1917.8,0.58451907]
[1772011311335,0.44352154,1918.2,1917.8,0.58451907]
[1772011313038,0.002,1917.9,1917.8,0.58451907]
[1772011317245,0.43820796,1917.9,1917.7,3.82]
[1772011317445,0.43820796,1917.9,1917.4,0.61614577]
[1772011317652,0.43820796,1917.9,1917.4,3.44922209]
[1772011317855,0.43820796,1917.9,1917.2,0.61614577]
[1772011318151,0.43820796,1917.9,1917.1,2.83307632]
[1772011318313,0.45424374,1917.8,1917.1,2.83307632]
[1772011318727,0.45424374,1917.8,1917.2,0.61614577]
[1772011319549,0.4514235,1917.6,1917.2,0.61614577]
[1772011321446,0.4514235,1917.6,1917.1,2.83307632]
[1772011321755,0.44584182,1917.4,1917.1,2.83307632]
[1772011321943,0.44584182,1917.4,1917.0,0.61614577]
[1772011322144,0.44584182,1917.4,1917.1,2.83307632]
[1772011322339,0.44584182,1917.4,1917.0,2.83307632]
[1772011323649,0.44584182,1917.4,1916.8,0.61614577]
[1772011323650,0.44033666,1917.2,1916.8,0.61614577]
[1772011323850,0.44033666,1917.2,1916.9,2.83307632]
[1772011324055,1.74143854,1917.5,1917.0,0.61614577]
[1772011324262,2.63401564,1917.9,1917.1,0.61614577]
[1772011324263,0.43761329,1917.7,1917.1,0.61614577]
[1772011324425,1.74315993,1917.9,1917.3,0.61614577]
[1772011325226,0.43490683,1917.8,1917.4,2.83307632]
[1772011325957,1.73853368,1917.8,1917.4,2.83307632]
[1772011326453,1.73853368,1917.8,1917.4,3.44922209]
[1772011327335,0.002,1917.9,1917.6,0.61614577]
[1772011327565,0.002,1918.0,1917.8,0.61614577]
[1772011328056,0.002,1918.0,1917.9,2.83307632]
[1772011328847,0.002,1918.0,1917.6,1.30367288]
[1772011328848,0.002,1918.0,1917.6,0.61614577]
[1772011329051,0.002,1918.0,1917.7,2.83307632]
[1772011330154,0.002,1918.0,1917.7,3.44922209]
[1772011331759,0.42053168,1918.0,1917.7,2.83307632]
[1772011331962,0.42053168,1918.0,1917.2,5.098244]
[1772011332127,1.30350904,1917.9,1917.2,5.098244]
[1772011332332,1.30350904,1917.9,1917.1,0.61614577]
[1772011332333,0.41853168,1917.8,1917.1,0.61614577]
[1772011332639,0.41853168,1917.8,1917.2,2.83307632]
[1772011332951,0.41727816,1917.7,1917.2,2.83307632]
[1772011333635,0.41727816,1917.7,1916.9,1.92031368]
[1772011333636,1.30549009,1918.0,1917.4,0.61614577]
[1772011334456,0.41809734,1918.0,1917.4,0.61614577]
[1772011334646,0.41809734,1918.0,1917.5,2.83307632]
[1772011334850,0.41809734,1918.0,1917.2,1.92012503]
[1772011335355,0.41809734,1918.0,1917.2,1.30397926]
[1772011335664,0.41809734,1918.0,1917.3,0.61614577]
[1772011336260,1.30350904,1917.9,1917.3,1.30391376]
[1772011336554,1.30350904,1917.9,1917.4,0.61614577]
[1772011337961,1.71502366,1917.9,1917.4,0.61614577]
[1772011339461,0.41040117,1917.8,1917.2,0.61614577]
[1772011339634,0.41040117,1917.8,1917.3,3.44922209]
[1772011339832,0.41040117,1917.8,1917.4,0.001]
[1772011340565,1.30364499,1917.7,1917.5,3.44922209]
[1772011340768,5.21450659,1917.8,1917.5,3.44922209]
[1772011340769,1.30363032,1917.8,1917.5,3.44922209]
[1772011341065,1.30363032,1917.8,1917.6,2.83307632]
[1772011341862,0.40714642,1917.7,1917.4,0.001]
[1772011342060,0.40714642,1917.7,1917.3,0.001]
[1772011342373,1.30363032,1917.8,1917.3,0.001]
[1772011344263,1.30363032,1917.8,1917.3,0.61714577]
[1772011349572,1.35468296,1917.8,1917.3,0.61714577]
[1772011351292,1.30554963,1917.9,1917.4,0.62245409]
[1772011351477,1.35222558,1917.9,1917.4,0.62245409]
[1772011352581,1.35222558,1917.9,1917.5,0.62245409]
[1772011352752,1.30554963,1917.9,1917.5,0.62245409]
[1772011353150,0.61471019,1917.7,1917.3,0.001]
[1772011353766,1.30371297,1917.6,1917.3,0.62345409]
[1772011353961,1.30371297,1917.6,1917.4,0.001]
[1772011359483,6.37628707,1917.7,1917.4,0.62345409]
[1772011359484,0.002,1917.7,1917.4,0.62345409]
[1772011364052,1.848302,1917.8,1917.4,0.001]
[1772011365185,1.848302,1917.8,1917.4,0.62345409]
[1772011365482,1.30357701,1917.8,1917.4,0.62345409]
[1772011368588,1.30357701,1917.8,1917.5,0.62345409]
[1772011368764,0.002,1917.7,1917.5,0.62345409]
[1772011372390,0.61671019,1917.7,1917.5,0.001]
[1772011373190,0.002,1917.7,1917.5,0.001]
[1772011373561,0.002,1917.7,1917.5,0.62345409]
[1772011374665,0.002,1917.8,1917.6,0.62245409]
[1772011375265,0.002,1917.8,1917.5,0.001]
[1772011375606,0.63196248,1917.8,1917.5,0.001]
[1772011376595,1.93360747,1917.7,1917.5,0.001]
[1772011376800,0.62996248,1917.7,1917.5,0.001]
[1772011377269,1.30562524,1917.8,1917.5,0.001]
[1772011377469,0.002,1917.8,1917.5,0.61805197]
[1772011378884,0.63196248,1917.8,1917.5,0.001]
[1772011379083,0.63196248,1917.8,1917.5,0.61805197]
[1772011380572,0.002,1917.9,1917.8,0.61705197]
[1772011381882,0.002,1917.9,1917.7,0.61705197]
[1772011383011,0.002,1917.8,1917.7,0.61705197]
[1772011383304,0.62996248,1917.7,1917.6,0.001]
[1772011387497,0.002,1917.8,1917.6,0.61805197]
[1772011388211,0.002,1917.9,1917.7,0.61705197]
[1772011388513,0.002,1917.9,1917.6,0.61805197]
[1772011390709,0.002,1917.9,1917.7,0.61705197]
[1772011392407,0.002,1917.9,1917.8,0.61705197]
[1772011395117,5.84305504,1918.3,1917.9,0.61705197]
[1772011395412,0.62996248,1918.2,1917.9,0.61705197]
[1772011395618,0.62996248,1918.2,1917.8,0.61705197]
[1772011395822,0.62996248,1918.2,1917.6,0.001]
[1772011395823,0.62996248,1918.1,1917.6,0.001]
[1772011396124,0.62996248,1918.1,1917.6,0.61805197]
[1772011396613,0.62996248,1918.1,1917.7,0.61805197]
[1772011396786,0.002,1917.8,1917.7,0.61805197]
[1772011397919,0.002,1917.9,1917.8,0.61705197]
[1772011398229,0.62996248,1918.5,1917.9,0.61705197]
[1772011398387,0.62996248,1918.7,1918.3,0.61705197]
[1772011398913,1.93286012,1918.8,1918.4,1.43389378]
[1772011399115,0.62996248,1918.7,1918.1,0.61705197]
[1772011399285,1.93298055,1918.7,1918.2,0.61705197]
[1772011399486,1.93292974,1918.7,1918.2,0.61705197]
[1772011400187,0.62996248,1918.6,1918.2,0.61705197]
[1772011400390,0.62996248,1918.3,1917.7,1.30461426]
[1772011400694,0.62996248,1918.3,1917.8,0.61705197]
[1772011400897,0.62996248,1918.1,1917.7,0.001]
[1772011401390,1.93340356,1918.0,1917.7,0.001]
[1772011401595,0.62996248,1918.0,1917.7,0.001]
[1772011401801,1.9333235,1918.2,1917.7,0.61805197]
[1772011404406,0.62996248,1918.1,1917.7,0.61805197]
[1772011404724,0.62996248,1918.1,1917.7,0.001]
[1772011407096,1.88438244,1918.0,1917.7,0.001]
[1772011408032,0.60611573,1917.9,1917.7,0.001]
[1772011408231,1.30344108,1918.0,1916.8,0.5647623]
[1772011408232,3.81020911,1917.5,1916.8,0.5647623]
[1772011408416,0.60611573,1917.5,1916.8,0.5647623]
[1772011409000,1.30384896,1917.4,1916.8,0.5647623]
[1772011409199,0.60611573,1917.3,1916.7,0.5657623]
[1772011409510,0.60611573,1917.3,1916.8,0.5647623]
[1772011409710,1.90995149,1917.5,1916.8,0.5647623]
[1772011411826,1.90995149,1917.5,1917.0,0.5647623]
[1772011412700,1.30383576,1917.5,1917.0,0.5647623]
[1772011412904,0.60611573,1917.4,1916.9,0.001]
[1772011413741,0.60611573,1917.2,1916.7,0.001]
[1772011415511,1.30391696,1917.3,1916.8,0.5647623]
[1772011416101,1.91003269,1917.3,1916.8,0.5647623]
[1772011423245,0.60611573,1917.2,1916.8,0.5647623]
[1772011424350,0.60611573,1917.2,1916.8,0.5657623]
[1772011424526,0.002,1917.2,1916.8,0.5657623]
[1772011424855,0.002,1917.2,1916.9,0.5647623]
[1772011425151,0.002,1917.3,1917.0,0.5647623]
[1772011425350,0.002,1917.3,1917.1,0.5647623]
[1772011425961,0.60811573,1917.3,1916.9,0.5647623]
[1772011427246,1.30398497,1917.2,1916.9,0.5647623]
[1772011427563,1.91208438,1917.3,1916.9,0.5647623]
[1772011427933,1.91208438,1917.3,1916.8,0.001]
[1772011427934,0.60611573,1917.2,1916.8,0.001]
[1772011430066,0.60611573,1917.2,1916.8,0.5657623]
[1772011430470,1.91010616,1917.2,1916.8,0.5657623]
[1772011432160,1.30597246,1917.3,1916.8,0.5657623]
[1772011432357,1.91208819,1917.3,1916.8,0.5657623]
[1772011432669,0.60611573,1917.2,1916.8,0.001]
[1772011434165,0.60611573,1917.0,1916.8,0.001]
[1772011434376,0.60611573,1917.0,1916.6,0.001]
[1772011435549,0.61665999,1916.8,1916.3,0.001]
[1772011436145,0.61665999,1916.8,1916.2,0.001]
[1772011436462,0.61665999,1916.6,1916.2,0.001]
[1772011437155,0.61665999,1917.1,1916.3,0.61207109]
[1772011437355,0.61665999,1917.1,1916.9,0.001]
[1772011437554,0.61865999,1917.1,1916.3,0.61207109]
[1772011437966,0.61865999,1917.1,1916.8,0.001]
[1772011438150,0.61865999,1917.1,1916.3,0.61207109]
[1772011438350,0.61865999,1917.1,1916.6,0.001]
[1772011438351,0.61665999,1916.9,1916.6,0.001]
[1772011440883,1.30415786,1917.0,1916.6,0.61307109]
[1772011441659,1.92081785,1917.0,1916.6,0.61307109]
[1772011442555,0.61665999,1916.9,1916.6,0.001]
[1772011442753,1.92091708,1916.8,1916.6,0.001]
[1772011442955,0.61665999,1916.7,1916.2,0.001]
[1772011443386,4.43070954,1916.7,1916.2,0.001]
[1772011443554,0.61665999,1916.6,1916.2,0.001]
[1772011444388,1.92089985,1916.9,1916.3,0.61207109]
[1772011444553,1.92085682,1916.9,1916.3,0.61207109]
[1772011444760,0.61665999,1916.8,1916.3,0.61207109]
[1772011445075,0.61665999,1916.8,1916.4,0.61207109]
[1772011445381,1.9209172,1916.8,1916.4,0.61207109]
[1772011446379,1.30425721,1916.8,1916.4,0.61207109]
[1772011447080,0.61665999,1916.9,1916.4,0.61207109]
[1772011449286,1.30425709,1916.8,1916.4,0.61207109]
[1772011449969,1.92089828,1916.9,1916.4,1.91660027]
[1772011450768,1.92089828,1916.9,1916.4,0.61207109]
[1772011451280,0.002,1916.8,1916.4,0.61207109]
[1772011451986,0.61665999,1916.7,1916.3,0.001]
[1772011452188,0.61665999,1916.7,1916.3,0.61307109]
[1772011453087,0.61665999,1916.4,1916.0,0.001]
[1772011453289,0.61665999,1916.6,1916.0,0.61307109]
[1772011453494,1.30446125,1916.5,1916.0,0.61307109]
[1772011453679,1.92112124,1916.5,1916.0,0.61307109]
[1772011454366,1.30446125,1916.5,1916.0,0.61307109]
[1772011454571,0.61665999,1916.4,1916.0,0.61307109]
[1772011455300,0.61665999,1916.4,1916.0,0.001]
[1772011455983,1.3045974,1916.3,1916.0,0.61307109]
[1772011456386,0.61665999,1916.2,1915.9,0.001]
[1772011459801,1.30473357,1916.1,1915.9,0.001]
[1772011461681,0.61665999,1916.0,1915.7,0.001]
[1772011463580,0.61665999,1916.0,1915.9,0.001]
[1772011463782,1.30480167,1916.0,1915.9,0.001]
[1772011464210,1.30480167,1916.0,1915.7,0.61307109]
[1772011464513,1.92146166,1916.0,1915.7,0.001]
[1772011464807,0.61665999,1915.9,1915.7,0.001]
[1772011465105,0.61665999,1915.7,1915.5,0.001]
[1772011465313,0.61665999,1915.7,1915.3,0.61307109]
[1772011466096,1.30507412,1915.6,1915.3,0.61307109]
[1772011467298,1.30507412,1915.6,1915.3,0.001]
[1772011467614,1.30507412,1915.6,1915.3,0.60610814]
[1772011468611,1.88238101,1915.6,1915.3,0.60610814]
[1772011468812,1.88238101,1915.6,1915.3,0.001]
[1772011472895,1.88238101,1915.6,1915.3,0.57422562]
[1772011473310,2.42826257,1915.6,1915.3,0.57422562]
[1772011473617,1.30502912,1915.7,1915.3,0.57422562]
[1772011474000,1.30491617,1915.9,1915.4,0.57322562]
[1772011474618,1.30491617,1915.9,1915.5,0.57322562]
[1772011474823,1.30473357,1916.1,1915.5,0.57322562]
[1772011474991,2.42785393,1916.2,1915.6,0.57322562]
[1772011475192,1.12318845,1916.1,1915.6,0.57322562]
[1772011475623,0.57930689,1916.1,1915.6,0.57322562]
[1772011475827,0.54588156,1915.7,1915.4,0.57422562]
[1772011476030,0.54588156,1915.6,1915.4,0.57422562]
[1772011476198,0.54588156,1915.7,1915.4,0.57422562]
[1772011476822,2.42825024,1915.7,1915.4,0.57422562]
[1772011476990,1.88236868,1915.7,1915.4,0.57422562]
[1772011477207,2.42825024,1915.7,1915.4,0.57422562]
[1772011478736,2.42825024,1915.7,1915.4,0.001]
[1772011480834,0.57730689,1915.4,1914.8,0.57322562]
[1772011481000,1.12318845,1915.4,1914.8,0.57322562]
[1772011481203,0.57730689,1915.4,1914.8,0.57322562]
[1772011482038,1.30506179,1915.7,1915.3,0.57322562]
[1772011482606,1.30506179,1915.7,1915.4,0.57322562]
[1772011482946,0.54588156,1915.5,1914.8,0.57322562]
[1772011483105,0.57730689,1915.4,1914.8,0.57322562]
[1772011483614,0.54588156,1915.5,1914.8,0.57322562]
[1772011483798,1.12318845,1915.5,1914.8,0.57322562]
[1772011484004,0.54588156,1915.4,1914.8,0.57322562]
[1772011484719,1.12318845,1915.4,1914.8,0.57322562]
[1772011484917,0.57730689,1915.1,1914.8,0.57322562]
[1772011485145,1.12318845,1915.1,1914.6,0.57322562]
[1772011485305,0.57730689,1915.1,1914.6,0.57322562]
[1772011487715,1.30548302,1915.0,1914.6,0.57322562]
[1772011487922,1.88277633,1915.1,1914.7,0.001]
[1772011488232,1.30546944,1915.1,1914.7,0.001]
[1772011488426,1.30546944,1915.1,1914.7,0.57422562]
[1772011489012,0.57730689,1915.0,1914.5,0.001]
[1772011489213,0.57730689,1915.0,1914.5,0.57422562]
[1772011489810,1.3055512,1914.9,1914.5,0.57422562]
[1772011492944,0.57730689,1914.9,1914.5,0.57422562]
[1772011496951,1.30561938,1914.8,1914.5,0.57422562]
[1772011498024,1.8565466,1914.8,1914.5,0.57422562]
[1772011500450,1.8565466,1914.8,1914.6,0.001]
[1772011501749,1.8565466,1914.8,1913.7,0.59647303]
[1772011501750,0.55092722,1914.6,1913.7,0.59647303]
[1772011502057,0.55092722,1914.4,1913.7,0.59647303]
[1772011502228,0.55092722,1914.4,1913.8,0.59747303]
[1772011502429,0.55092722,1914.2,1913.7,0.001]
[1772011502636,0.55092722,1914.2,1913.6,0.59747303]
[1772011502871,0.55092722,1914.2,1913.7,0.59647303]
[1772011504661,0.55092722,1914.1,1913.7,1.90284077]
[1772011504965,0.55092722,1914.1,1913.7,1.90284018]
[1772011505152,0.55092722,1914.1,1913.7,0.59647303]
[1772011505330,0.55092722,1914.1,1913.6,1.30638177]
[1772011505331,0.55092722,1914.1,1913.6,1.9028548]
[1772011505662,0.55092722,1914.1,1913.7,0.59747303]
[1772011506634,1.85709231,1914.0,1913.7,0.001]
[1772011507065,1.30616509,1914.0,1913.7,0.59747303]
[1772011507669,1.85709231,1914.0,1913.7,0.001]
[1772011509255,0.55092722,1913.9,1913.4,0.59647303]
[1772011511256,1.85722881,1913.8,1913.4,0.59647303]
[1772011511458,0.55092722,1914.0,1913.5,0.59647303]
[1772011511663,1.85709279,1914.0,1913.5,0.59647303]
[1772011511866,1.30615997,1914.1,1913.5,0.59647303]
[1772011512060,1.85708719,1914.1,1913.5,0.59647303]
[1772011512281,0.55092722,1914.0,1913.5,0.59647303]
[1772011512777,0.55092722,1913.9,1913.1,0.59647303]
[1772011512966,0.55092722,1913.9,1913.3,0.59647303]
[1772011513578,1.85722881,1913.8,1913.6,0.001]
[1772011513757,1.85721139,1913.9,1913.6,0.001]
[1772011513949,0.55092722,1914.1,1913.6,0.59747303]
[1772011514150,0.002,1914.2,1913.7,0.59647303]
[1772011514660,1.3080448,1914.2,1913.7,0.59647303]
[1772011515183,1.3080448,1914.2,1913.5,0.001]
[1772011515184,0.55092722,1913.9,1913.5,0.001]
[1772011515673,1.85720923,1913.9,1913.5,0.001]
[1772011515876,1.37104488,1913.8,1913.5,0.001]
[1772011516076,0.55092722,1913.7,1913.5,0.001]
[1772011517959,1.30628201,1913.9,1913.5,0.001]
[1772011518202,0.55092722,1913.8,1913.5,0.001]
[1772011519559,1.30614481,1914.1,1913.5,0.59747303]
[1772011519758,1.30807262,1914.2,1913.7,0.59647303]
[1772011521359,1.85899984,1914.2,1913.7,0.59647303]
[1772011522891,5.22594847,1914.3,1913.9,0.59647303]
[1772011522892,0.002,1914.3,1913.9,0.59647303]
[1772011523711,1.30564456,1914.8,1914.2,0.59647303]
[1772011523877,1.30564456,1914.8,1914.3,0.59647303]
[1772011524301,1.85851661,1914.9,1914.4,0.59647303]
[1772011525215,0.55092722,1914.5,1913.7,1.30636985]
[1772011525421,0.55092722,1914.5,1913.8,0.54250383]
[1772011527308,0.55616919,1914.3,1913.8,0.54250383]
[1772011527493,0.55616919,1914.3,1913.6,1.83944614]
[1772011527914,0.55616919,1914.3,1913.6,1.84044614]
[1772011528914,0.55616919,1914.3,1913.7,0.54204868]
[1772011529618,1.30602862,1914.2,1913.7,0.54204868]
[1772011529780,1.88903502,1914.2,1913.7,1.84841673]
[1772011530194,0.5830064,1914.1,1913.7,0.54204868]
[1772011531625,0.5830064,1914.0,1913.6,1.30742994]
[1772011531826,0.5830064,1914.0,1913.6,1.84780605]
[1772011532189,0.5830064,1914.0,1913.6,0.54137611]
[1772011532887,1.30610222,1914.1,1913.6,0.54137611]
[1772011533823,0.5830064,1914.1,1913.6,0.54137611]
[1772011534113,0.5830064,1914.1,1913.6,1.84781138]
[1772011536091,1.88915403,1914.1,1913.6,1.84781138]
[1772011537192,1.88910969,1914.1,1913.6,1.84781138]
[1772011538405,0.5830064,1914.0,1913.6,0.54137611]
[1772011538723,0.5830064,1913.9,1913.0,0.53866286]
[1772011541012,0.5830064,1913.7,1913.1,0.53796997]
[1772011542715,0.5830064,1913.7,1913.5,0.001]
[1772011542914,0.5830064,1913.5,1913.1,0.53796997]
[1772011543800,1.30643812,1913.6,1913.1,0.53796997]
[1772011544000,1.30624334,1913.9,1913.3,0.53730302]
[1772011544308,1.8891834,1914.0,1913.3,0.53730302]
[1772011545140,0.5830064,1913.9,1913.4,0.53708408]
[1772011547133,1.88930799,1913.8,1913.4,0.53708408]
[1772011547627,0.5830064,1913.7,1913.2,1.30665735]
[1772011548007,1.30630159,1913.8,1913.3,0.53644378]
[1772011548600,1.88930799,1913.8,1913.3,0.53644378]
[1772011548801,1.30630159,1913.8,1913.3,0.53644378]
[1772011549119,1.30630159,1913.8,1913.4,0.53623422]
[1772011549318,1.88930799,1913.8,1913.4,0.53623422]
[1772011550220,0.5830064,1913.7,1913.0,0.5360286]
[1772011551108,1.88944452,1913.6,1913.0,0.5360286]
[1772011551323,1.88944452,1913.6,1913.1,0.53582584]
[1772011552335,5.2257525,1914.0,1913.1,0.53582584]
[1772011552336,1.30616509,1914.0,1913.1,0.53582584]
[1772011552632,0.5830064,1913.9,1913.1,0.53582584]
[1772011553208,0.5830064,1913.7,1913.1,0.53582584]
[1772011553409,0.5830064,1913.7,1913.1,1.84259858]
[1772011554009,0.5830064,1913.7,1913.1,0.53582584]
[1772011555029,0.5830064,1913.7,1913.2,0.001]
[1772011555434,1.86522604,1913.6,1913.2,0.001]
[1772011556246,1.30841601,1913.7,1913.2,0.53400598]
[1772011557014,0.002,1913.7,1913.2,0.53400598]
[1772011557542,0.002,1913.7,1913.3,0.53300598]
[1772011557744,0.56078792,1913.7,1913.2,1.30766122]
[1772011557919,0.56078792,1913.7,1913.2,0.001]
[1772011559211,0.56078792,1913.7,1913.2,0.53400598]
[1772011559447,0.56078792,1913.7,1913.2,1.84068704]
[1772011559653,1.86522604,1913.6,1913.2,0.53400598]
[1772011560322,0.55878792,1913.6,1913.2,1.84070358]
[1772011560510,1.30836985,1913.7,1913.2,1.84070358]
[1772011560724,0.56078792,1913.7,1913.3,0.53300598]
[1772011560926,0.002,1913.7,1913.3,0.53300598]
[1772011561551,1.30837129,1913.7,1913.3,0.53300598]
[1772011561856,0.56078792,1913.7,1913.3,0.53300598]
[1772011562152,0.56078792,1913.7,1913.2,0.001]
[1772011562957,0.55878792,1913.6,1913.2,0.001]
[1772011563136,0.55878792,1913.6,1912.9,0.53300598]
[1772011563753,1.3065064,1913.5,1912.9,0.53300598]
[1772011563949,1.86529432,1913.5,1912.9,0.53300598]
[1772011564139,1.86529432,1913.5,1913.0,0.53300598]
[1772011564341,0.55878792,1913.5,1913.0,0.53300598]
[1772011564860,5.78641007,1913.7,1913.0,0.53300598]
[1772011565039,1.86715777,1913.7,1913.0,0.53300598]
[1772011565235,0.002,1913.7,1913.0,0.53300598]
[1772011565455,0.002,1913.7,1913.2,0.53300598]
[1772011565838,0.002,1913.7,1913.4,0.53287034]
[1772011566039,1.86492034,1914.1,1913.4,0.53087034]
[1772011566343,1.86488702,1914.1,1913.4,0.53087034]
[1772011567134,0.55878792,1914.1,1913.4,0.53087034]
[1772011567457,1.86679129,1914.3,1913.6,0.53070057]
[1772011567759,0.55878792,1914.2,1913.6,0.53070057]
[1772011567960,1.86488478,1914.1,1913.6,1.83711918]
[1772011569774,0.55878792,1914.0,1913.5,1.30750634]
[1772011569933,0.56078792,1914.0,1913.5,1.30750634]
[1772011570134,1.86697213,1914.0,1913.5,1.83770832]
[1772011570335,0.002,1914.0,1913.5,0.53120198]
[1772011572000,0.56078792,1914.0,1913.5,0.001]
[1772011572174,0.002,1914.0,1913.6,0.52988705]
[1772011574041,0.002,1914.0,1913.6,0.56644616]
[1772011574242,0.002,1914.1,1913.8,0.52957148]
[1772011575895,0.56078792,1914.1,1913.6,0.56582544]
[1772011576078,0.56078792,1914.1,1913.5,1.3074895]
[1772011576285,0.55878792,1913.9,1913.5,0.001]
[1772011579078,1.86502448,1913.9,1913.5,0.001]
[1772011579262,1.30623656,1913.9,1913.5,0.001]
[1772011579586,0.55878792,1913.8,1913.5,0.001]
[1772011583865,0.002,1913.7,1913.5,0.001]
[1772011584068,0.55878792,1913.8,1913.5,0.52911199]
[1772011584263,1.86688782,1914.1,1913.5,0.52911199]
[1772011584464,0.002,1913.8,1913.5,0.52911199]
[1772011584682,1.86688782,1914.1,1913.6,0.52611199]
[1772011584884,0.56078792,1914.1,1913.6,0.52611199]
[1772011585087,0.002,1914.5,1914.0,4.549311]
[1772011585291,0.56078792,1914.5,1914.0,0.52597688]
[1772011585491,0.56078792,1914.5,1914.1,1.8319362]
[1772011585692,0.002,1914.5,1914.2,0.52583934]
[1772011587892,0.56885788,1914.4,1913.7,0.52543278]
[1772011588076,0.56885788,1914.4,1913.9,0.52530426]
[1772011588869,0.56885788,1914.4,1913.8,3.7064]
[1772011589068,0.56885788,1914.4,1913.7,0.52517415]
[1772011589775,0.56885788,1914.4,1913.6,1.30643812]
[1772011590091,0.54054031,1914.2,1913.6,1.83149387]
[1772011591375,0.54054031,1914.2,1913.6,1.30643812]
[1772011591572,0.54054031,1914.2,1913.5,1.3074509]
[1772011591999,0.54054031,1914.2,1913.5,0.52581361]
[1772011592196,5.22384161,1914.4,1913.5,0.52581361]
[1772011592197,1.84663717,1914.1,1913.5,0.52581361]
[1772011593798,1.30609686,1914.1,1913.5,0.52581361]
[1772011594099,0.54054031,1914.0,1913.5,0.52581361]
[1772011594304,0.54054031,1914.0,1913.6,1.30643812]
[1772011595380,0.54054031,1914.3,1913.7,0.52445514]
[1772011596300,0.54054031,1914.2,1913.8,1.30630159]
[1772011597377,0.002,1913.9,1913.8,1.30630159]
[1772011597576,0.54054031,1914.2,1913.8,1.30630159]
[1772011597794,0.002,1914.0,1913.8,1.30630159]
[1772011598098,0.54054031,1914.4,1913.9,0.52409793]
[1772011598316,0.002,1914.2,1913.8,1.30630159]
[1772011598808,0.002,1914.2,1913.8,0.52409793]
[1772011599602,0.54254031,1914.2,1913.8,0.52409793]
[1772011600373,0.002,1914.2,1913.8,0.52409793]
[1772011600575,0.002,1914.2,1914.0,1.83001928]
[1772011601613,0.54254031,1914.5,1914.0,1.83001928]
[1772011602712,0.54254031,1914.5,1914.0,2.37643411]
[1772011603282,0.54254031,1914.5,1914.1,0.52353155]
[1772011603479,0.002,1914.6,1914.2,0.52353155]
[1772011603779,0.54054031,1914.5,1914.0,1.82957179]
[1772011604016,0.54054031,1914.5,1914.1,4.242834]
[1772011604312,0.54254031,1914.6,1914.1,0.523424]
[1772011604722,0.002,1914.6,1914.2,1.30602862]
[1772011604882,0.002,1914.6,1914.3,0.523424]
[1772011608116,0.002,1914.6,1914.3,1.82933338]
[1772011608328,0.54254031,1914.6,1914.2,1.3059624]
[1772011609140,0.54254031,1914.6,1914.2,1.82886276]
[1772011610744,0.54254031,1914.6,1913.8,4.34279873]
[1772011610899,0.54054031,1914.5,1913.8,1.30629138]
[1772011611220,0.54054031,1914.5,1913.8,1.82899116]
[1772011611533,0.54054031,1914.5,1913.7,1.30631787]
[1772011611925,0.54054031,1914.5,1913.7,1.30731787]
[1772011612132,0.54254031,1914.5,1913.7,1.30731787]
[1772011612703,1.30589218,1914.4,1913.7,1.30731787]
[1772011613013,0.54054031,1914.3,1913.7,1.30731787]
[1772011613626,0.54054031,1914.3,1913.7,0.001]
[1772011615125,0.54054031,1914.1,1913.7,0.001]
[1772011617806,0.57459289,1913.9,1913.7,0.001]
[1772011620814,1.88052451,1914.4,1913.7,0.51596218]
[1772011621015,0.57459289,1914.3,1913.7,0.51596218]
[1772011621815,0.57459289,1914.3,1913.8,1.30630159]
[1772011622016,0.57459289,1914.3,1913.9,0.51395848]
[1772011622408,0.57459289,1914.3,1913.7,0.001]
[1772011622409,0.57747649,1914.0,1913.7,0.001]
[1772011623231,0.57747649,1914.2,1913.7,0.001]
[1772011623429,0.57747649,1914.2,1913.7,1.30736323]
[1772011624017,1.8835089,1914.2,1913.7,0.001]
[1772011624423,0.57747649,1914.2,1913.7,0.001]
[1772011624829,1.88336953,1914.4,1913.7,0.001]
[1772011625016,0.57747649,1914.4,1913.7,0.001]
[1772011625216,0.57747649,1914.3,1913.7,0.001]
[1772011626441,0.57747649,1914.1,1913.7,0.001]
[1772011626640,0.57747649,1914.0,1913.7,0.001]
[1772011627547,0.57747649,1914.0,1913.6,0.001]
[1772011627853,0.57747649,1914.0,1913.8,0.001]
[1772011628020,0.57747649,1914.0,1913.6,0.001]
[1772011628219,1.30623334,1913.9,1913.6,0.001]
[1772011628536,0.57697649,1913.8,1913.6,0.001]
[1772011629261,0.57697649,1913.8,1913.5,0.001]
[1772011631253,0.57697649,1913.6,1913.5,0.001]
[1772011633554,1.88341461,1913.6,1913.5,0.001]
[1772011633928,1.88334973,1913.7,1913.5,0.001]
[1772011634122,0.57697649,1913.7,1913.5,0.001]
[1772011635623,1.88341461,1913.6,1913.5,0.001]
[1772011637226,1.88341461,1913.6,1913.4,0.001]
[1772011637936,0.57697649,1913.5,1913.4,0.001]
[1772011640267,1.88348289,1913.5,1913.4,0.001]
[1772011641074,1.30647198,1913.6,1913.5,0.001]
[1772011642444,0.57697649,1913.6,1913.5,0.001]
[1772011642846,0.57697649,1913.9,1913.5,0.001]